bitfinex/quotes_ETHUSD_20260106
["timestamp","ask_amount","ask_price","bid_price","bid_amount"]
[1767671379923,0.93508601,3220.3,3219.4,0.9203755]
[1767671381942,0.93508601,3220.2,3219.4,0.9203755]
[1767671382444,0.93508601,3220.2,3219.4,1.40434857]
[1767671383119,0.93508601,3220.2,3219.5,0.9203755]
[1767671383925,4.04051024,3220.2,3219.5,0.9203755]
[1767671385438,0.93508601,3220.1,3219.3,3.031052]
[1767671385743,0.93508601,3220.1,3219.3,0.9203755]
[1767671386630,0.93508601,3220.1,3219.8,0.001]
[1767671386831,0.40405102,3220.0,3219.8,0.001]
[1767671393926,4.04042561,3220.3,3219.8,0.001]
[1767671395125,0.90147769,3220.2,3219.8,0.001]
[1767671397066,4.00695788,3220.2,3219.8,0.001]
[1767671397228,7.11243807,3220.2,3219.5,0.9203755]
[1767671397560,0.71124381,3220.1,3219.5,0.9203755]
[1767671399378,3.8168198,3220.1,3219.5,0.9203755]
[1767671400178,7.82387348,3220.1,3219.5,0.9203755]
[1767671400380,7.82387348,3220.1,3218.7,0.814]
[1767671400381,0.90147769,3220.0,3218.8,0.94541226]
[1767671401173,0.98021046,3219.9,3218.8,0.94541226]
[1767671401339,3.10587942,3219.7,3218.9,0.48662292]
[1767671401540,0.98021046,3219.6,3218.9,0.48662292]
[1767671402051,0.98021046,3219.6,3218.7,3.92083592]
[1767671402373,0.98021046,3219.6,3218.7,3.92083685]
[1767671402974,0.98021046,3219.6,3218.8,3.10673394]
[1767671403368,0.98021046,3219.6,3218.7,3.9208012]
[1767671405266,0.98021046,3219.6,3218.7,3.1068012]
[1767671405467,0.98021046,3219.6,3218.8,0.71779834]
[1767671405857,3.10582211,3219.8,3218.9,0.96424314]
[1767671406056,4.08603257,3219.8,3218.9,0.96424314]
[1767671410079,0.98021046,3219.7,3218.9,0.96424314]
[1767671410279,0.98021046,3219.7,3219.2,0.001]
[1767671410585,0.71918813,3219.6,3219.2,0.001]
[1767671411085,0.98021046,3219.5,3219.2,0.001]
[1767671413378,0.98021046,3219.4,3219.2,0.001]
[1767671415048,3.10589265,3219.7,3219.2,0.001]
[1767671415252,0.40861031,3219.6,3219.2,0.001]
[1767671415754,0.98021046,3219.5,3219.2,0.001]
[1767671419856,0.40861031,3219.6,3219.2,0.001]
[1767671420584,0.98021046,3219.5,3219.2,0.001]
[1767671421085,0.40861031,3219.6,3219.2,0.001]
[1767671421269,0.40861031,3219.6,3219.2,0.96524314]
[1767671421462,0.40861031,3219.6,3219.2,0.001]
[1767671421463,0.98021046,3219.6,3219.2,0.001]
[1767671421879,0.98021046,3219.5,3219.2,0.001]
[1767671422787,0.98021046,3219.5,3218.5,0.96424314]
[1767671423281,3.10600991,3219.6,3218.5,0.96424314]
[1767671423487,3.80860105,3219.6,3218.6,0.96424314]
[1767671425287,1.27056342,3219.5,3218.6,0.96424314]
[1767671425583,0.98021046,3219.5,3218.6,0.96424314]
[1767671428385,3.10616885,3219.4,3218.6,0.96424314]
[1767671429179,4.08631912,3219.5,3218.6,0.96424314]
[1767671429384,1.74953943,3219.4,3218.6,0.96424314]
[1767671429588,1.45909088,3219.4,3218.6,0.96424314]
[1767671430587,4.56528251,3219.4,3218.6,0.96424314]
[1767671432787,0.47888042,3219.4,3218.6,0.96424314]
[1767671432984,0.70259114,3219.6,3218.7,0.92015938]
[1767671432985,3.80859802,3219.6,3218.7,0.92015938]
[1767671433202,0.29037983,3219.5,3218.7,0.92015938]
[1767671433371,0.29037983,3219.4,3218.9,0.92115938]
[1767671433692,0.002,3219.3,3218.9,0.001]
[1767671435484,0.002,3219.3,3218.9,0.92115938]
[1767671440023,0.002,3219.6,3218.9,0.92115938]
[1767671440303,0.002,3219.6,3219.1,0.92015938]
[1767671443613,0.002,3219.6,3219.2,0.92015938]
[1767671445606,0.002,3219.6,3219.0,0.92015938]
[1767671446719,0.002,3219.6,3219.2,0.001]
[1767671447102,0.002,3219.3,3219.2,0.001]
[1767671452230,0.98397798,3219.3,3219.2,0.001]
[1767671453240,0.002,3219.3,3219.2,0.001]
[1767671456317,0.002,3219.3,3219.2,0.97590554]
[1767671456512,0.002,3219.6,3219.2,0.001]
[1767671456730,0.98670093,3219.5,3219.2,0.001]
[1767671458620,0.002,3219.6,3219.2,0.97590554]
[1767671461417,0.002,3219.6,3219.2,0.001]
[1767671461733,1.21611018,3219.6,3219.2,0.001]
[1767671463338,4.3221539,3219.6,3219.2,0.001]
[1767671463841,1.21611018,3219.6,3219.2,0.001]
[1767671464138,4.32209627,3219.6,3219.2,0.001]
[1767671467950,0.9033307,3219.4,3219.2,0.001]
[1767671469214,0.29061832,3219.3,3219.2,0.001]
[1767671469744,3.39688365,3219.3,3219.2,0.001]
[1767671469945,3.39888365,3219.3,3219.2,0.001]
[1767671470486,4.30221435,3219.3,3219.2,0.001]
[1767671470619,1.97999943,3219.3,3219.2,0.001]
[1767671470818,5.08626476,3219.3,3219.2,0.001]
[1767671475159,4.79564644,3219.3,3219.2,0.001]
[1767671475363,5.08607839,3219.3,3219.2,0.001]
[1767671475554,4.79564644,3219.3,3219.2,0.001]
[1767671475755,5.08607839,3219.3,3219.2,0.001]
[1767671476062,4.79564644,3219.3,3219.2,0.001]
[1767671480772,3.89231574,3219.3,3219.2,0.001]
[1767671481072,0.78605041,3219.3,3219.2,0.001]
[1767671481369,0.002,3219.3,3219.2,0.001]
[1767671482154,3.10826533,3219.3,3219.2,0.001]
[1767671482977,0.002,3219.3,3219.2,0.001]
[1767671488172,0.29247884,3219.3,3219.2,0.001]
[1767671488358,0.29247884,3219.3,3218.9,0.001]
[1767671488359,0.29247831,3219.3,3218.9,0.001]
[1767671488558,0.7318826,3219.2,3218.9,0.001]
[1767671489358,0.002,3219.3,3218.9,0.001]
[1767671492083,0.002,3219.3,3218.9,0.97993156]
[1767671492754,0.002,3219.6,3219.3,0.97893156]
[1767671493584,0.96635905,3220.3,3219.4,0.97893156]
[1767671493754,0.29050329,3220.2,3219.7,0.97893156]
[1767671493947,3.10702173,3220.6,3219.8,0.97893156]
[1767671494559,0.002,3220.6,3220.0,0.97893156]
[1767671496683,0.002,3220.6,3220.1,0.97893156]
[1767671498282,0.002,3220.9,3220.6,0.97893156]
[1767671499181,0.002,3221.3,3220.1,3.10542569]
[1767671499182,0.002,3221.3,3221.0,0.97893156]
[1767671500156,0.002,3221.3,3220.3,0.97893156]
[1767671500348,0.002,3221.3,3220.5,0.97893156]
[1767671502696,0.002,3221.3,3220.7,0.97893156]
[1767671504765,0.002,3221.3,3220.8,0.97893156]
[1767671505170,0.002,3221.0,3220.8,0.97893156]
[1767671505493,0.002,3221.3,3220.6,3.10497146]
[1767671505494,0.96835905,3221.3,3220.6,3.10497146]
[1767671505693,0.96835905,3221.3,3220.7,0.77324786]
[1767671506187,0.96835905,3221.3,3220.4,3.9763819]
[1767671508194,0.002,3221.3,3220.5,0.97893156]
[1767671509477,0.96835905,3221.3,3220.5,0.97893156]
[1767671511391,0.002,3221.3,3220.6,0.97893156]
[1767671514214,0.002,3221.3,3220.0,0.47241459]
[1767671514215,0.96635905,3221.1,3220.1,0.82529492]
[1767671514532,0.96635905,3221.0,3220.1,0.82529492]
[1767671514835,0.96635905,3221.0,3220.2,0.97893156]
[1767671516933,0.96635905,3221.0,3220.5,0.001]
[1767671517307,0.96835905,3221.0,3220.5,0.001]
[1767671518636,4.07300457,3221.0,3220.5,0.001]
[1767671518805,0.99546628,3220.9,3220.5,0.001]
[1767671519849,0.99546628,3220.6,3219.6,3.10591039]
[1767671520214,0.99546628,3220.6,3219.6,4.07691225]
[1767671520616,0.99546628,3220.6,3219.7,3.10586149]
[1767671520810,0.99546628,3220.9,3220.0,0.97100186]
[1767671521035,0.9490839,3220.8,3220.0,0.97100186]
[1767671521346,0.9490839,3220.8,3219.9,0.98546926]
[1767671521644,0.813,3220.9,3220.1,0.98546926]
[1767671521820,0.815,3221.0,3220.4,0.98546926]
[1767671522008,0.002,3221.0,3220.4,0.98546926]
[1767671522837,0.002,3221.3,3220.6,5.61297641]
[1767671523013,0.9510839,3221.3,3220.6,5.18880479]
[1767671523340,0.9510839,3221.3,3220.6,8.29378911]
[1767671523706,0.9510839,3221.3,3220.6,0.56129764]
[1767671524628,0.9510839,3221.3,3220.6,3.66629806]
[1767671524834,0.9510839,3221.3,3220.6,0.56129764]
[1767671525006,0.9510839,3221.3,3220.7,0.36663787]
[1767671525211,0.9510839,3221.3,3220.6,0.56129764]
[1767671526245,0.002,3221.3,3220.7,0.98546926]
[1767671526540,0.9510839,3221.3,3220.7,0.98546926]
[1767671526923,0.002,3221.3,3220.7,0.98546926]
[1767671528742,0.002,3221.3,3220.8,0.98546926]
[1767671528956,0.9510839,3222.0,3221.2,0.98546926]
[1767671529111,0.29006066,3221.9,3221.2,0.98346926]
[1767671529315,4.86775451,3222.0,3221.2,0.98346926]
[1767671529540,0.29003187,3221.9,3221.2,0.98346926]
[1767671529755,4.86775451,3222.0,3221.2,0.98346926]
[1767671529927,1.0871629,3221.9,3221.2,0.98346926]
[1767671530128,3.90090553,3221.9,3221.2,0.98346926]
[1767671530648,0.9490839,3221.8,3220.9,0.98646926]
[1767671530860,0.9490839,3221.7,3220.9,0.98646926]
[1767671531011,1.74446012,3221.7,3220.9,0.98646926]
[1767671533350,4.05313157,3221.6,3220.9,0.98646926]
[1767671533517,4.05313157,3221.6,3220.9,0.001]
[1767671533518,0.9490839,3221.4,3220.9,0.001]
[1767671534466,0.813,3221.5,3220.9,0.001]
[1767671534825,1.7620839,3221.5,3220.9,0.001]
[1767671535047,2.63863028,3221.5,3220.9,0.001]
[1767671535853,4.86584255,3221.9,3220.9,0.98646926]
[1767671536032,0.28995838,3221.8,3220.9,0.98646926]
[1767671536367,0.28995838,3221.7,3220.9,0.98646926]
[1767671536665,0.9490839,3221.8,3220.9,0.98646926]
[1767671536834,0.28994958,3221.7,3220.9,0.98646926]
[1767671537031,3.10394576,3221.8,3220.9,0.98646926]
[1767671537237,0.28993699,3221.7,3220.9,0.98646926]
[1767671537436,3.10394576,3221.8,3220.9,0.98646926]
[1767671537659,0.28994013,3221.7,3220.9,0.98646926]
[1767671537847,3.10394576,3221.8,3220.9,0.98646926]
[1767671538160,0.68163476,3221.7,3220.9,0.98646926]
[1767671538361,0.39169458,3221.7,3220.9,0.98646926]
[1767671539438,3.49566553,3221.7,3220.9,0.98646926]
[1767671539739,4.44474943,3221.7,3220.9,0.98646926]
[1767671540141,0.9490839,3221.6,3220.9,0.98646926]
[1767671540345,1.70395594,3221.5,3220.9,0.001]
[1767671540946,1.70395594,3221.5,3221.0,0.001]
[1767671541156,0.002,3221.4,3221.0,0.001]
[1767671545649,0.9510839,3221.4,3221.0,0.001]
[1767671546073,4.05534059,3221.4,3221.0,0.001]
[1767671546572,0.9510839,3221.4,3221.0,0.001]
[1767671551265,0.002,3221.4,3221.0,0.95232422]
[1767671551857,0.95260936,3222.3,3221.4,0.95132422]
[1767671552049,0.95260936,3222.2,3221.2,0.95132422]
[1767671552248,3.10547396,3222.2,3221.4,0.95132422]
[1767671552444,0.95260936,3222.0,3221.3,0.17643242]
[1767671552650,0.95260936,3222.0,3221.2,1.76432422]
[1767671552977,0.002,3222.0,3221.3,0.95132422]
[1767671553362,0.002,3222.0,3221.4,0.95132422]
[1767671559665,0.95260936,3222.0,3221.1,1.76432422]
[1767671559865,0.95260936,3222.0,3221.2,1.12785664]
[1767671560070,0.95260936,3222.0,3221.2,0.95132422]
[1767671561483,0.95260936,3222.0,3220.4,0.95132422]
[1767671561484,0.95060936,3221.8,3220.4,0.95132422]
[1767671561779,0.95060936,3221.6,3220.4,0.95132422]
[1767671562085,10.50785326,3221.7,3220.4,0.95132422]
[1767671562086,0.95060936,3221.4,3220.4,0.95132422]
[1767671562482,0.95060936,3221.1,3219.3,0.95132422]
[1767671562682,0.95060936,3221.1,3219.2,0.001]
[1767671562683,0.95060936,3220.9,3219.6,0.95132422]
[1767671563771,0.95060936,3220.7,3219.7,0.95132422]
[1767671563973,1.35615216,3220.6,3219.7,0.95132422]
[1767671566568,4.4612159,3220.6,3219.7,0.95132422]
[1767671566770,0.95060936,3220.5,3219.7,0.95132422]
[1767671566983,0.95060936,3220.5,3219.2,0.001]
[1767671566984,0.95060936,3220.5,3219.3,0.95132422]
[1767671567287,0.95060936,3220.4,3219.3,0.95132422]
[1767671567486,0.813,3220.5,3219.6,0.95132422]
[1767671567684,5.27416511,3220.6,3219.8,0.95132422]
[1767671568186,0.4055428,3220.6,3219.8,0.95132422]
[1767671568491,4.05543068,3220.8,3219.9,0.95132422]
[1767671568980,0.95060936,3220.7,3219.9,0.95132422]
[1767671569362,0.95060936,3220.7,3219.6,0.95132422]
[1767671570991,0.95060936,3220.5,3219.6,0.95132422]
[1767671571173,0.95060936,3220.5,3219.6,1.45602333]
[1767671572088,0.95060936,3220.5,3219.6,0.95132422]
[1767671573164,0.95060936,3220.4,3219.6,0.95132422]
[1767671573889,0.95060936,3221.0,3219.9,25.305432]
[1767671574089,0.813,3221.2,3219.7,1.67962347]
[1767671574090,0.95060936,3221.3,3220.1,0.95132422]
[1767671574290,1.99709858,3221.2,3220.2,0.95132422]
[1767671574495,0.95060936,3221.2,3220.4,0.9690398]
[1767671574801,1.14584626,3221.5,3220.4,0.9690398]
[1767671574975,0.813,3221.6,3220.5,0.97279544]
[1767671574976,4.92469435,3221.6,3220.5,0.97279544]
[1767671575180,1.00763364,3221.5,3220.5,0.97279544]
[1767671576977,0.002,3221.2,3220.5,0.97279544]
[1767671577375,1.00963364,3221.2,3220.4,0.01771558]
[1767671579370,1.00763364,3221.0,3220.4,0.01771558]
[1767671580485,1.50034995,3221.0,3220.4,0.01771558]
[1767671580678,1.00763364,3220.9,3220.4,0.01771558]
[1767671581581,1.03262037,3220.7,3220.0,0.95443548]
[1767671582811,1.03262037,3220.7,3219.9,0.001]
[1767671583876,1.03262037,3220.5,3219.9,0.001]
[1767671584090,1.44638356,3220.5,3219.9,0.001]
[1767671586408,1.44638356,3220.5,3219.9,0.95543548]
[1767671586600,1.03262037,3220.7,3219.9,0.95543548]
[1767671588906,4.13753657,3220.7,3219.9,0.95543548]
[1767671589411,3.10474401,3220.9,3219.9,0.95543548]
[1767671589909,4.13736438,3220.9,3219.9,0.95543548]
[1767671590208,1.03262037,3220.8,3220.0,0.95443548]
[1767671590398,0.41373644,3220.7,3220.0,0.95443548]
[1767671590592,0.41373644,3220.7,3220.1,0.95443548]
[1767671590794,1.03262037,3220.8,3220.1,0.95443548]
[1767671590993,1.03262037,3220.8,3220.2,0.03105397]
[1767671591382,1.03262037,3220.8,3220.1,0.95443548]
[1767671591615,4.13745589,3220.8,3220.1,0.95443548]
[1767671592113,1.03262037,3220.7,3219.9,0.001]
[1767671592319,1.03262037,3220.6,3219.9,0.001]
[1767671593910,1.03262037,3220.5,3219.9,0.001]
[1767671594822,1.44636596,3220.7,3219.9,0.95543548]
[1767671595026,4.551287,3220.7,3219.9,0.95543548]
[1767671595215,0.4551287,3220.6,3219.9,0.95543548]
[1767671596321,3.56015981,3220.6,3219.9,0.95543548]
[1767671596815,1.03262037,3220.5,3219.9,0.95543548]
[1767671597009,1.03262037,3220.5,3219.9,0.001]
[1767671597493,1.03262037,3220.5,3219.9,0.95543548]
[1767671599620,0.4551287,3220.6,3219.9,0.95543548]
[1767671599825,1.49189089,3220.5,3219.9,0.95543548]
[1767671599994,1.49189089,3220.5,3219.9,0.001]
[1767671599995,1.03262037,3220.4,3219.9,0.001]
[1767671601121,1.03262037,3220.4,3220.2,0.001]
[1767671601306,4.13987364,3220.4,3220.2,0.001]
[1767671601506,0.45991442,3220.3,3220.2,0.001]
[1767671602305,1.03262037,3220.2,3219.9,0.001]
[1767671602613,1.03262037,3220.2,3219.4,0.95443548]
[1767671603230,1.03262037,3220.1,3219.4,0.95443548]
[1767671603436,1.03262037,3219.9,3219.2,0.95543548]
[1767671603902,1.03262037,3219.9,3219.2,0.001]
[1767671606332,4.13832864,3219.9,3219.2,0.001]
[1767671607224,1.03262037,3219.8,3219.2,0.001]
[1767671607733,1.03262037,3219.6,3219.2,0.001]
[1767671609844,0.69356656,3219.8,3219.2,0.95543548]
[1767671610015,1.03262037,3219.9,3219.2,0.001]
[1767671611436,1.04391786,3219.8,3219.2,0.001]
[1767671611940,1.04391786,3219.8,3219.2,1.02645972]
[1767671614008,4.14971524,3219.8,3219.2,1.02645972]
[1767671614332,4.14971524,3219.8,3219.5,0.001]
[1767671614542,0.41497152,3219.7,3219.5,0.001]
[1767671616238,1.04391786,3219.8,3219.5,0.001]
[1767671616948,0.002,3220.0,3219.5,1.02645972]
[1767671620846,1.04591786,3220.0,3219.5,0.001]
[1767671622750,3.10568651,3219.9,3219.5,0.001]
[1767671622953,4.15154637,3220.0,3219.5,0.001]
[1767671623122,0.80710457,3219.9,3219.5,0.001]
[1767671625156,3.91286936,3219.9,3219.5,0.001]
[1767671626663,1.04391786,3219.8,3219.5,0.001]
[1767671627334,4.14974903,3219.8,3219.5,0.001]
[1767671627850,1.04391786,3219.7,3219.2,0.001]
[1767671628041,1.45889276,3219.6,3219.2,0.001]
[1767671629857,0.4149749,3219.6,3219.2,0.001]
[1767671630045,1.04391786,3219.8,3219.2,0.001]
[1767671630951,4.14970772,3219.8,3219.2,0.001]
[1767671631732,1.04391786,3219.8,3219.2,0.001]
[1767671637167,1.03961728,3219.7,3219.2,0.001]
[1767671637661,0.80710457,3219.9,3219.2,1.00961141]
[1767671637861,0.2906721,3219.8,3219.2,1.00961141]
[1767671638164,1.03961728,3219.9,3219.2,0.001]
[1767671638362,1.03961728,3219.7,3219.2,0.001]
[1767671639566,1.03961728,3219.7,3219.5,0.001]
[1767671641871,1.02798916,3219.6,3219.2,0.001]
[1767671642045,1.02798916,3219.5,3218.3,3.10721935]
[1767671642246,1.02798916,3219.5,3217.8,1.04905069]
[1767671642247,1.02798916,3219.1,3217.8,1.04905069]
[1767671642557,1.02798916,3219.1,3218.1,3.10741306]
[1767671642770,1.02798916,3219.1,3218.2,0.31074131]
[1767671643269,1.02798916,3219.1,3217.8,4.15675235]
[1767671643471,1.02798916,3219.1,3217.9,1.04905069]
[1767671643642,1.84198916,3219.1,3218.3,1.04905069]
[1767671643837,0.814,3219.1,3218.3,1.04905069]
[1767671644277,1.84198916,3219.1,3218.3,1.04905069]
[1767671644572,2.33682476,3219.1,3218.3,1.04905069]
[1767671644958,1.02798916,3219.0,3218.3,1.04905069]
[1767671645357,1.02798916,3219.0,3218.3,4.15622132]
[1767671645556,0.814,3219.1,3218.4,1.04905069]
[1767671647079,0.814,3219.1,3218.5,1.04905069]
[1767671649477,0.814,3219.1,3218.6,1.04905069]
[1767671649883,1.02798916,3219.3,3218.6,1.04905069]
[1767671650983,0.814,3219.4,3218.6,1.04905069]
[1767671651181,1.02798916,3219.3,3218.6,4.1559471]
[1767671651362,1.02798916,3219.3,3218.6,3.10689641]
[1767671651979,1.02798916,3219.3,3218.6,4.23225367]
[1767671652182,1.02798916,3219.3,3218.6,5.28130436]
[1767671652574,1.02798916,3219.3,3218.6,4.23225367]
[1767671652767,1.02798916,3219.3,3218.6,5.28130436]
[1767671653082,1.02798916,3219.3,3218.7,0.001]
[1767671653283,1.02798916,3219.3,3218.8,0.52823044]
[1767671654282,0.814,3219.6,3218.9,1.04905069]
[1767671654651,2.84284456,3219.7,3218.9,1.04905069]
[1767671654855,2.84284456,3219.7,3219.1,1.04905069]
[1767671656684,2.82586048,3219.7,3219.1,1.04905069]
[1767671657879,3.85384964,3219.7,3219.1,1.04905069]
[1767671658258,1.02798916,3219.6,3218.8,0.52823044]
[1767671658461,1.02798916,3219.6,3218.9,0.36360355]
[1767671660253,1.02798916,3219.6,3218.9,1.41265424]
[1767671661590,1.02798916,3219.6,3218.9,1.04905069]
[1767671664495,1.02798916,3219.6,3219.2,0.001]
[1767671664704,2.82586048,3219.7,3219.2,0.001]
[1767671665202,2.82586048,3219.7,3219.2,1.05005069]
[1767671669121,0.816,3220.0,3219.6,1.04905069]
[1767671669614,0.002,3220.0,3219.6,1.04905069]
[1767671676312,0.002,3219.7,3219.3,1.02534161]
[1767671677692,0.002,3219.7,3219.2,0.001]
[1767671678215,0.99338521,3219.7,3219.2,0.001]
[1767671678812,1.17412373,3219.7,3219.2,0.001]
[1767671679720,0.99138521,3219.5,3219.2,0.001]
[1767671684395,0.002,3219.7,3219.2,0.001]
[1767671684619,0.99338521,3219.7,3219.2,0.001]
[1767671688238,4.09928123,3219.7,3219.2,0.001]
[1767671688423,4.90117929,3219.7,3219.2,0.001]
[1767671689224,4.90117929,3219.7,3219.5,0.001]
[1767671690435,1.79528327,3219.7,3219.5,0.001]
[1767671690738,4.90119829,3219.7,3219.5,0.001]
[1767671691198,1.79528327,3219.7,3219.5,0.001]
[1767671691398,4.90118558,3219.7,3219.5,0.001]
[1767671692534,1.48150377,3219.6,3219.2,0.001]
[1767671692916,0.99138521,3219.6,3219.2,0.001]
[1767671693817,0.002,3219.7,3219.2,0.001]
[1767671695339,3.10788981,3219.7,3219.2,0.001]
[1767671699315,4.13853518,3219.7,3219.2,0.001]
[1767671701149,4.13853518,3219.7,3219.5,0.001]
[1767671701320,4.13853518,3219.7,3218.4,4.41822825]
[1767671701321,0.95106851,3219.5,3218.7,1.02493577]
[1767671701523,0.95106851,3219.5,3218.5,1.02493577]
[1767671701848,1.04431005,3219.3,3218.4,0.4971233]
[1767671702034,5.73059543,3219.4,3218.5,1.02493577]
[1767671702035,0.29034147,3219.2,3218.5,1.02493577]
[1767671702235,0.29034147,3219.1,3218.5,1.02493577]
[1767671703334,0.95106851,3218.9,3218.4,0.4971233]
[1767671703654,0.95106851,3218.9,3218.1,1.02493577]
[1767671704027,3.31203723,3219.1,3218.1,1.02493577]
[1767671704233,4.26310574,3219.1,3218.1,1.02493577]
[1767671704433,0.29017166,3219.0,3218.1,1.02493577]
[1767671704633,0.95106851,3219.0,3218.2,1.02493577]
[1767671705876,4.0576686,3219.0,3218.2,1.02493577]
[1767671706522,0.205541,3219.1,3218.2,1.02493577]
[1767671706723,0.814,3219.2,3218.2,1.02493577]
[1767671706925,1.76506851,3219.2,3218.3,1.02493577]
[1767671707168,1.24115332,3219.1,3218.3,1.02493577]
[1767671707465,0.95106851,3218.9,3217.6,1.02493577]
[1767671707749,0.95106851,3218.6,3217.7,1.02493577]
[1767671707922,3.10671415,3218.9,3217.9,1.02493577]
[1767671707923,0.95106851,3218.9,3217.9,1.02493577]
[1767671708122,1.24119281,3218.8,3217.9,1.02493577]
[1767671708352,4.05783792,3218.8,3217.9,1.02493577]
[1767671709355,0.814,3219.2,3217.9,1.02493577]
[1767671709356,0.814,3218.9,3217.9,1.02493577]
[1767671709526,0.814,3218.9,3218.0,1.02493577]
[1767671709852,0.95106851,3218.7,3217.8,1.43821917]
[1767671710155,3.10674785,3218.8,3217.9,1.02493577]
[1767671710356,3.92069241,3218.9,3217.9,1.02493577]
[1767671710766,3.92069241,3218.9,3218.0,1.02493577]
[1767671711054,0.95106851,3218.9,3218.1,0.41325381]
[1767671711254,0.95106851,3218.9,3218.2,4.13222836]
[1767671711564,0.95106851,3219.3,3218.3,1.02493577]
[1767671711852,0.95106851,3219.2,3218.1,0.41325381]
[1767671712053,1.04431005,3219.2,3217.9,3.92157364]
[1767671712430,1.04431005,3219.2,3217.9,0.814]
[1767671712753,1.04431005,3219.2,3217.9,3.92160371]
[1767671713255,1.04431005,3219.2,3218.3,0.001]
[1767671713455,0.002,3218.8,3218.3,0.001]
[1767671713657,0.95106851,3218.7,3218.3,0.001]
[1767671713854,0.002,3218.8,3218.3,0.001]
[1767671716158,0.95106851,3218.7,3218.3,0.001]
[1767671716461,0.95106851,3218.7,3217.6,1.02493577]
[1767671716633,0.95106851,3218.7,3217.6,4.13281488]
[1767671717079,0.002,3218.8,3217.7,1.02493577]
[1767671717373,0.95106851,3218.7,3217.7,1.02493577]
[1767671717538,0.95106851,3218.7,3217.9,1.02493577]
[1767671718554,4.05798007,3218.7,3217.9,1.02493577]
[1767671719676,0.002,3218.8,3217.9,1.02493577]
[1767671720238,3.10877801,3218.8,3217.9,1.02493577]
[1767671720986,7.16662453,3218.8,3217.9,1.02493577]
[1767671721276,1.74913096,3218.7,3217.9,1.02493577]
[1767671722978,4.85606259,3218.7,3217.9,1.02493577]
[1767671723689,4.05800014,3218.7,3217.9,1.02493577]
[1767671725284,3.10876859,3218.8,3217.9,1.02493577]
[1767671725806,3.108754,3218.8,3218.2,1.02693577]
[1767671725977,0.001,3218.4,3218.2,1.02693577]
[1767671727982,0.002,3218.8,3218.4,1.02493577]
[1767671728889,0.002,3219.1,3218.7,1.02493577]
[1767671734052,4.10319595,3219.7,3218.9,0.97129857]
[1767671734293,0.29028949,3219.6,3218.9,0.97129857]
[1767671734460,4.10319595,3219.7,3218.9,0.97129857]
[1767671734655,0.29022043,3219.6,3218.9,0.97129857]
[1767671734854,0.002,3219.7,3218.9,0.97129857]
[1767671735587,3.10788096,3219.7,3218.9,0.97129857]
[1767671735756,0.002,3219.7,3218.9,0.97129857]
[1767671736968,0.99724266,3219.7,3218.9,0.97129857]
[1767671738894,4.10314164,3219.7,3218.9,0.97129857]
[1767671739276,0.002,3219.4,3218.9,0.97129857]
[1767671740468,0.002,3219.4,3219.0,0.46434765]
[1767671740669,0.002,3219.4,3218.9,0.97129857]
[1767671741696,0.99724266,3219.4,3218.8,0.5654447]
[1767671741887,0.99724266,3219.4,3218.4,0.97129857]
[1767671743496,0.99724266,3219.4,3218.4,4.07839212]
[1767671743695,0.99724266,3219.4,3218.5,0.97129857]
[1767671743905,0.002,3219.4,3218.6,0.97129857]
[1767671745904,0.002,3219.4,3218.7,0.97129857]
[1767671746203,0.002,3219.4,3218.8,0.40782376]
[1767671746402,0.002,3219.4,3218.7,0.97129857]
[1767671746799,0.99724266,3219.4,3218.7,0.97129857]
[1767671746973,0.99724266,3219.4,3218.4,4.07840524]
[1767671747296,0.99724266,3219.4,3218.4,0.97129857]
[1767671747704,0.99524266,3219.2,3218.4,0.97129857]
[1767671749204,0.99524266,3219.2,3218.5,1.37915094]
[1767671749576,0.99524266,3219.2,3218.5,0.97129857]
[1767671750779,0.99524266,3219.1,3218.5,0.97129857]
[1767671751505,0.99524266,3219.1,3218.7,0.001]
[1767671752804,4.10170892,3219.1,3218.7,0.001]
[1767671753415,0.99524266,3219.0,3218.7,0.001]
[1767671758916,3.10629695,3219.3,3218.7,0.001]
[1767671759099,3.82564339,3219.3,3218.7,0.001]
[1767671759301,4.80470829,3219.3,3218.7,0.001]
[1767671760894,1.69841134,3219.3,3218.7,0.001]
[1767671761095,1.69841134,3219.3,3218.7,0.99270398]
[1767671761417,0.9790649,3219.3,3218.7,0.99270398]
[1767671761903,0.002,3219.4,3218.7,0.99270398]
[1767671762316,0.002,3219.4,3218.9,0.99170398]
[1767671763127,0.002,3219.4,3219.0,0.99270398]
[1767671764528,0.002,3219.7,3219.3,0.99170398]
[1767671765126,0.002,3219.7,3219.3,1.5538255]
[1767671765692,0.002,3219.7,3219.4,0.99170398]
[1767671767221,0.002,3220.0,3219.4,4.62951122]
[1767671767222,0.96069829,3220.0,3219.4,4.62951122]
[1767671767426,0.002,3220.0,3219.5,0.99170398]
[1767671767627,0.002,3220.0,3219.7,0.99170398]
[1767671769405,0.002,3220.3,3219.8,0.99170398]
[1767671772256,0.96069829,3220.3,3219.3,1.5538255]
[1767671772411,0.96069829,3220.3,3219.3,0.56212152]
[1767671772613,0.95869829,3220.2,3219.0,0.815]
[1767671773234,0.95869829,3220.2,3219.2,3.10636172]
[1767671773607,0.95869829,3220.2,3219.3,0.99170398]
[1767671773812,0.002,3220.4,3219.8,0.99170398]
[1767671775747,0.002,3220.1,3219.8,0.99170398]
[1767671776645,0.002,3220.1,3219.5,0.99170398]
[1767671776818,0.96069829,3220.1,3219.2,0.99170398]
[1767671777010,0.96069829,3220.1,3219.3,0.4821704]
[1767671777215,0.96069829,3220.1,3219.3,1.47387438]
[1767671777935,0.96069829,3220.1,3219.4,0.99170398]
[1767671779916,4.06621529,3220.1,3219.4,0.99170398]
[1767671780938,0.96069829,3220.1,3219.4,0.99170398]
[1767671781755,0.002,3220.1,3219.5,0.99170398]
[1767671782240,0.002,3220.4,3220.0,0.99170398]
[1767671784217,4.06342712,3220.9,3220.0,0.99170398]
[1767671784818,0.95869829,3220.8,3220.0,0.99170398]
[1767671786549,0.95869829,3220.7,3219.8,0.99170398]
[1767671786846,0.95869829,3220.7,3219.8,1.40146906]
[1767671787631,0.95869829,3220.7,3219.9,0.99170398]
[1767671787831,0.002,3220.5,3219.9,0.99170398]
[1767671788032,0.002,3220.5,3220.0,0.99170398]
[1767671790450,0.002,3220.5,3220.1,0.99170398]
[1767671791764,0.002,3220.5,3219.8,1.38501871]